[Event "*** Titled Tuesday Blitz"]
[Site "Chess.com"]
[Date "2020.03.03"]
[Round "8"]
[White "davigator"]
[Black "ChadBiryani"]
[Result "0-1"]
[WhiteElo "2314"]
[BlackElo "2450"]
[TimeControl "180+1"]
[EndTime "14:36:47 PST"]
[Termination "ChadBiryani won on time"]

1. e4 {[%clk 0:03:00.9]} 1... e5 {[%clk 0:02:57.2]} 2. Nf3 {[%clk 0:03:00.1]}
2... Nf6 {[%clk 0:02:54.8]} 3. Nxe5 {[%clk 0:02:56.5]} 3... Nc6 {[%clk
0:02:52.9]} 4. Nxc6 {[%clk 0:02:55.2]} 4... dxc6 {[%clk 0:02:51.4]} 5. Nc3
{[%clk 0:02:54.9]} 5... Bc5 {[%clk 0:02:49.2]} 6. Bc4 {[%clk 0:02:51.7]} 6...
Ng4 {[%clk 0:02:42.9]} 7. d4 {[%clk 0:02:45.3]} 7... Bxd4 {[%clk 0:02:40.1]} 8.
O-O {[%clk 0:02:16.2]} 8... Qh4 {[%clk 0:02:34.5]} 9. h3 {[%clk 0:02:10.6]} 9...
Bxf2+ {[%clk 0:02:32.5]} 10. Rxf2 {[%clk 0:02:07.7]} 10... Qxf2+ {[%clk
0:02:29.4]} 11. Kh1 {[%clk 0:02:07.5]} 11... Ne5 {[%clk 0:02:11.5]} 12. Be2
{[%clk 0:01:52.9]} 12... Be6 {[%clk 0:02:02]} 13. Qf1 {[%clk 0:01:51.8]} 13...
Qxf1+ {[%clk 0:01:54.1]} 14. Bxf1 {[%clk 0:01:51.3]} 14... O-O-O {[%clk
0:01:53.3]} 15. b3 {[%clk 0:01:50.1]} 15... f6 {[%clk 0:01:45.2]} 16. Be3 {[%clk
0:01:47.5]} 16... h5 {[%clk 0:01:42.6]} 17. Kg1 {[%clk 0:01:46.6]} 17... g5
{[%clk 0:01:42.1]} 18. Kf2 {[%clk 0:01:45.7]} 18... g4 {[%clk 0:01:39.9]} 19. h4
{[%clk 0:01:44.8]} 19... Rhg8 {[%clk 0:01:37]} 20. g3 {[%clk 0:01:44.3]} 20...
b6 {[%clk 0:01:29.2]} 21. a4 {[%clk 0:01:43.4]} 21... f5 {[%clk 0:01:25.1]} 22.
Ba6+ {[%clk 0:01:40.5]} 22... Kb8 {[%clk 0:01:24.4]} 23. a5 {[%clk 0:01:40.3]}
23... fxe4 {[%clk 0:01:16.5]} 24. axb6 {[%clk 0:01:38]} 24... cxb6 {[%clk
0:01:15.2]} 25. Bf4 {[%clk 0:01:37.1]} 25... Rgf8 {[%clk 0:01:07.5]} 26. Ke2
{[%clk 0:01:36.2]} 26... Rf5 {[%clk 0:01:07.3]} 27. Nxe4 {[%clk 0:01:32.7]}
27... Bd5 {[%clk 0:01:01.1]} 28. Nc3 {[%clk 0:01:23.7]} 28... Ka8 {[%clk
0:00:57.5]} 29. Ke3 {[%clk 0:01:18.2]} 29... Ng6 {[%clk 0:00:54]} 30. Nxd5
{[%clk 0:01:15.4]} 30... Rfxd5 {[%clk 0:00:48.4]} 31. Bg5 {[%clk 0:01:08.6]}
31... Re8+ {[%clk 0:00:42.8]} 32. Kf2 {[%clk 0:01:07.5]} 32... Ra5 {[%clk
0:00:34.9]} 33. Rxa5 {[%clk 0:01:06.7]} 33... bxa5 {[%clk 0:00:35.8]} 34. Bd3
{[%clk 0:01:01.3]} 34... Ne5 {[%clk 0:00:34.7]} 35. Be4 {[%clk 0:01:01]} 35...
Kb7 {[%clk 0:00:33.5]} 36. Ke3 {[%clk 0:00:58.1]} 36... Nf3 {[%clk 0:00:30]} 37.
Bf4 {[%clk 0:00:47]} 37... Nd2 {[%clk 0:00:29.9]} 38. Kxd2 {[%clk 0:00:45.7]}
38... Rxe4 {[%clk 0:00:30.2]} 39. Be3 {[%clk 0:00:44.6]} 39... a4 {[%clk
0:00:23.9]} 40. bxa4 {[%clk 0:00:39.7]} 40... Rxa4 {[%clk 0:00:22.7]} 41. Bc5
{[%clk 0:00:37.9]} 41... a6 {[%clk 0:00:22.3]} 42. Kc3 {[%clk 0:00:36.8]} 42...
Re4 {[%clk 0:00:22.3]} 43. Kd3 {[%clk 0:00:36.5]} 43... Ra4 {[%clk 0:00:21.4]}
44. Kc3 {[%clk 0:00:35.8]} 44... Kc7 {[%clk 0:00:21.9]} 45. Kd3 {[%clk
0:00:32.3]} 45... Kd7 {[%clk 0:00:21.9]} 46. c3 {[%clk 0:00:29.6]} 46... Ke6
{[%clk 0:00:22.1]} 47. Bb6 {[%clk 0:00:27.8]} 47... Kf5 {[%clk 0:00:20.8]} 48.
Bc7 {[%clk 0:00:27.3]} 48... Re4 {[%clk 0:00:18.9]} 49. Ba5 {[%clk 0:00:25.5]}
49... Re7 {[%clk 0:00:17.1]} 50. Kd4 {[%clk 0:00:22.8]} 50... Re4+ {[%clk
0:00:14.2]} 51. Kd3 {[%clk 0:00:22.3]} 51... Ra4 {[%clk 0:00:14.3]} 52. Bc7
{[%clk 0:00:22]} 52... Ra2 {[%clk 0:00:14.3]} 53. Kc4 {[%clk 0:00:20]} 53... Ke6
{[%clk 0:00:14.8]} 54. Kc5 {[%clk 0:00:19.5]} 54... Kd7 {[%clk 0:00:15.3]} 55.
Be5 {[%clk 0:00:15.9]} 55... Ra5+ {[%clk 0:00:15.5]} 56. Kd4 {[%clk 0:00:15.3]}
56... Rd5+ {[%clk 0:00:13]} 57. Ke4 {[%clk 0:00:14.7]} 57... Ke6 {[%clk
0:00:13.5]} 58. Bc7 {[%clk 0:00:13.4]} 58... a5 {[%clk 0:00:12.3]} 59. c4 {[%clk
0:00:13.4]} 59... Rf5 {[%clk 0:00:12.9]} 60. Bb6 {[%clk 0:00:10.5]} 60... a4
{[%clk 0:00:12]} 61. Bd4 {[%clk 0:00:10.3]} 61... Rf3 {[%clk 0:00:11.1]} 62. Be5
{[%clk 0:00:09.5]} 62... a3 {[%clk 0:00:07.7]} 63. c5 {[%clk 0:00:08.8]} 63...
Re3+ {[%clk 0:00:05.3]} 64. Kxe3 {[%clk 0:00:08.2]} 64... Kxe5 {[%clk
0:00:05.9]} 65. Kd3 {[%clk 0:00:08.2]} 65... a2 {[%clk 0:00:06.4]} 66. Kc2
{[%clk 0:00:07.4]} 66... a1=Q {[%clk 0:00:06.5]} 67. Kb3 {[%clk 0:00:08.3]}
67... Qc1 {[%clk 0:00:05]} 68. Kb4 {[%clk 0:00:07.6]} 68... Kd5 {[%clk
0:00:05.3]} 69. Ka5 {[%clk 0:00:06.7]} 69... Qb2 {[%clk 0:00:05.7]} 70. Ka6
{[%clk 0:00:05.8]} 70... Kxc5 {[%clk 0:00:06.2]} 71. Ka7 {[%clk 0:00:05.7]}
71... Kd6 {[%clk 0:00:06.7]} 72. Ka6 {[%clk 0:00:04.2]} 72... c5 {[%clk
0:00:07.1]} 73. Ka5 {[%clk 0:00:03.7]} 73... c4 {[%clk 0:00:07.6]} 74. Ka4
{[%clk 0:00:03.2]} 74... Kc5 {[%clk 0:00:08]} 0-1

[Event "*** Titled Tuesday Blitz"]
[Site "Chess.com"]
[Date "2020.03.03"]
[Round "8"]
[White "IgorBjelobrk"]
[Black "Orest_Vovk"]
[Result "1-0"]
[WhiteElo "2705"]
[BlackElo "2529"]
[TimeControl "180+1"]
[EndTime "14:37:08 PST"]
[Termination "IgorBjelobrk won by resignation"]

1. d4 {[%clk 0:03:00.9]} 1... e5 {[%clk 0:02:57.2]} 2. dxe5 {[%clk 0:02:59.9]}
2... Nc6 {[%clk 0:02:56.8]} 3. Nf3 {[%clk 0:03:00.4]} 3... Qe7 {[%clk
0:02:56.9]} 4. Bf4 {[%clk 0:03:00.8]} 4... Qb4+ {[%clk 0:02:56.3]} 5. Bd2 {[%clk
0:03:01.3]} 5... Qxb2 {[%clk 0:02:56.4]} 6. Nc3 {[%clk 0:03:01.1]} 6... Bb4
{[%clk 0:02:56.9]} 7. Rb1 {[%clk 0:03:00.1]} 7... Qa3 {[%clk 0:02:57.2]} 8. Rb3
{[%clk 0:03:00.6]} 8... Qa5 {[%clk 0:02:54.4]} 9. e3 {[%clk 0:03:00.1]} 9...
Nge7 {[%clk 0:02:51.6]} 10. Bd3 {[%clk 0:02:57.8]} 10... Ng6 {[%clk 0:02:39.8]}
11. a3 {[%clk 0:02:57.4]} 11... Bxc3 {[%clk 0:02:39.2]} 12. Bxc3 {[%clk
0:02:56.8]} 12... Qc5 {[%clk 0:02:39.1]} 13. Qa1 {[%clk 0:02:53.5]} 13... O-O
{[%clk 0:02:33.3]} 14. O-O {[%clk 0:02:52.9]} 14... Re8 {[%clk 0:02:29.5]} 15.
Rb5 {[%clk 0:02:48.4]} 15... Qe7 {[%clk 0:02:28.3]} 16. Rd1 {[%clk 0:02:47.5]}
16... a6 {[%clk 0:02:28.4]} 17. Rd5 {[%clk 0:02:47.5]} 17... b5 {[%clk
0:02:01.7]} 18. Bf5 {[%clk 0:02:46.1]} 18... Nb8 {[%clk 0:01:49.8]} 19. Bb4
{[%clk 0:02:40.9]} 19... Qd8 {[%clk 0:01:48.1]} 20. Ba5 {[%clk 0:02:30.6]} 20...
Ne7 {[%clk 0:01:24.1]} 21. Be4 {[%clk 0:02:21.1]} 21... Nxd5 {[%clk 0:01:11.5]}
22. Bxd5 {[%clk 0:02:22]} 22... Ra7 {[%clk 0:01:11.3]} 23. Qd4 {[%clk
0:02:20.2]} 23... Rb7 {[%clk 0:00:31]} 24. Qf4 {[%clk 0:01:57.3]} 24... Rf8
{[%clk 0:00:24.8]} 25. Ng5 {[%clk 0:01:52]} 25... Qe7 {[%clk 0:00:20.6]} 26.
Bxb7 {[%clk 0:01:51.1]} 26... Bxb7 {[%clk 0:00:20]} 27. Bxc7 {[%clk 0:01:51.6]}
27... h6 {[%clk 0:00:18.2]} 28. Nf3 {[%clk 0:01:43.1]} 28... Bxf3 {[%clk
0:00:16.6]} 29. Qxf3 {[%clk 0:01:43.3]} 29... Re8 {[%clk 0:00:16.4]} 30. Qb7
{[%clk 0:01:35.4]} 30... Nc6 {[%clk 0:00:15.7]} 31. Bd6 {[%clk 0:01:35.2]} 31...
Qe6 {[%clk 0:00:15.3]} 32. f4 {[%clk 0:01:22.7]} 32... f6 {[%clk 0:00:14.9]} 33.
Qxa6 {[%clk 0:01:13]} 33... fxe5 {[%clk 0:00:14.9]} 34. Qxb5 {[%clk 0:01:12.8]}
34... exf4 {[%clk 0:00:14.9]} 35. Bxf4 {[%clk 0:01:12.9]} 35... g5 {[%clk
0:00:14.5]} 36. Bg3 {[%clk 0:00:49.5]} 36... Qxe3+ {[%clk 0:00:14.2]} 37. Bf2
{[%clk 0:00:49.5]} 37... Qe6 {[%clk 0:00:10.5]} 38. h3 {[%clk 0:00:45]} 38...
Ne5 {[%clk 0:00:08.2]} 39. Qd5 {[%clk 0:00:39.8]} 39... Ng6 {[%clk 0:00:05.7]}
40. Qxd7 {[%clk 0:00:37.2]} 40... Qxd7 {[%clk 0:00:03]} 41. Rxd7 {[%clk
0:00:36.2]} 41... Rc8 {[%clk 0:00:02.9]} 42. a4 {[%clk 0:00:31.3]} 42... Rxc2
{[%clk 0:00:01.6]} 43. a5 {[%clk 0:00:31.5]} 43... Rc1+ {[%clk 0:00:02.5]} 44.
Kh2 {[%clk 0:00:31.2]} 44... Ra1 {[%clk 0:00:03.4]} 45. Bb6 {[%clk 0:00:24.3]}
45... Nf4 {[%clk 0:00:03.6]} 46. Rd2 {[%clk 0:00:23.6]} 46... Ra4 {[%clk
0:00:02.9]} 47. g3 {[%clk 0:00:23.3]} 47... Ng6 {[%clk 0:00:02.6]} 48. Kg2
{[%clk 0:00:22.7]} 48... Kf7 {[%clk 0:00:03.1]} 49. Rd7+ {[%clk 0:00:22]} 49...
Ke6 {[%clk 0:00:03.2]} 50. Rh7 {[%clk 0:00:21.8]} 50... Kf5 {[%clk 0:00:03.4]}
51. Rxh6 {[%clk 0:00:20.5]} 51... Ra2+ {[%clk 0:00:03.6]} 52. Kf1 {[%clk
0:00:19.6]} 52... Ne5 {[%clk 0:00:04.5]} 53. Rh8 {[%clk 0:00:15.5]} 53... Ke4
{[%clk 0:00:04.5]} 54. Re8 {[%clk 0:00:15.5]} 54... Kd5 {[%clk 0:00:04.7]} 55.
Rd8+ {[%clk 0:00:15.1]} 55... Ke4 {[%clk 0:00:04.7]} 56. Re8 {[%clk 0:00:15.7]}
56... Kd5 {[%clk 0:00:04.5]} 57. Ke1 {[%clk 0:00:14.8]} 57... Nd3+ {[%clk
0:00:04.1]} 58. Kd1 {[%clk 0:00:15.1]} 58... Rb2 {[%clk 0:00:04.2]} 59. Rd8+
{[%clk 0:00:13.6]} 59... Kc4 {[%clk 0:00:03.5]} 60. Rc8+ {[%clk 0:00:13.9]}
60... Kb5 {[%clk 0:00:03.3]} 61. Rg8 {[%clk 0:00:12.6]} 61... Ra2 {[%clk
0:00:02.7]} 62. Rxg5+ {[%clk 0:00:12.3]} 62... Ka6 {[%clk 0:00:03.4]} 63. Rg8
{[%clk 0:00:13.2]} 63... Nb4 {[%clk 0:00:03.2]} 64. h4 {[%clk 0:00:13.5]} 64...
Nd3 {[%clk 0:00:02.8]} 65. h5 {[%clk 0:00:13.7]} 65... Rh2 {[%clk 0:00:03.1]}
66. g4 {[%clk 0:00:13.3]} 66... Nb2+ {[%clk 0:00:03.7]} 67. Ke1 {[%clk 0:00:13]}
67... Nc4 {[%clk 0:00:04.6]} 68. Kf1 {[%clk 0:00:11.8]} 68... Ne5 {[%clk
0:00:04.8]} 69. Kg1 {[%clk 0:00:11]} 69... Nf3+ {[%clk 0:00:05]} 70. Kf1 {[%clk
0:00:11.2]} 70... Rh4 {[%clk 0:00:05.3]} 71. Kf2 {[%clk 0:00:10.8]} 71... Ne5
{[%clk 0:00:04.1]} 72. Kg3 {[%clk 0:00:11.1]} 72... Rh1 {[%clk 0:00:04.3]} 73.
Bc7 {[%clk 0:00:10.3]} 73... Nd7 {[%clk 0:00:03.5]} 74. Rg6+ {[%clk 0:00:09.2]}
74... Kb7 {[%clk 0:00:03.2]} 75. Bf4 {[%clk 0:00:08.9]} 75... Nc5 {[%clk
0:00:03.3]} 76. Rb6+ {[%clk 0:00:07.6]} 76... Ka7 {[%clk 0:00:02.8]} 77. Be3
{[%clk 0:00:08.5]} 77... Ne4+ {[%clk 0:00:02.9]} 78. Kf4 {[%clk 0:00:08.8]}
78... Nc3 {[%clk 0:00:03.4]} 79. Rb1+ {[%clk 0:00:08.3]} 79... Ka6 {[%clk
0:00:04]} 80. Rxh1 {[%clk 0:00:08.8]} 80... Nd5+ {[%clk 0:00:04.9]} 81. Ke4
{[%clk 0:00:08.4]} 81... Nf6+ {[%clk 0:00:05.2]} 82. Kf3 {[%clk 0:00:09.3]}
82... Nxg4 {[%clk 0:00:05.2]} 83. Kxg4 {[%clk 0:00:10.2]} 1-0

[Event "*** Titled Tuesday Blitz"]
[Site "Chess.com"]
[Date "2020.03.03"]
[Round "8"]
[White "Marcus_Harvey"]
[Black "MartinCerveny"]
[Result "0-1"]
[WhiteElo "2734"]
[BlackElo "2643"]
[TimeControl "180+1"]
[EndTime "14:37:23 PST"]
[Termination "MartinCerveny won on time"]

1. d4 {[%clk 0:02:16.4]} 1... d5 {[%clk 0:02:59.4]} 2. Nf3 {[%clk 0:02:16.1]}
2... Nf6 {[%clk 0:02:59]} 3. Bf4 {[%clk 0:02:15.6]} 3... Bf5 {[%clk 0:02:58.4]}
4. c3 {[%clk 0:02:14.1]} 4... c6 {[%clk 0:02:57.8]} 5. Qb3 {[%clk 0:02:10.3]}
5... Qb6 {[%clk 0:02:57.6]} 6. Nbd2 {[%clk 0:02:10.8]} 6... Nbd7 {[%clk
0:02:57]} 7. a4 {[%clk 0:02:07.8]} 7... h6 {[%clk 0:02:54]} 8. a5 {[%clk
0:02:07.3]} 8... Qxb3 {[%clk 0:02:53.9]} 9. Nxb3 {[%clk 0:02:08.2]} 9... a6
{[%clk 0:02:53.8]} 10. e3 {[%clk 0:02:08]} 10... Rc8 {[%clk 0:02:50.8]} 11. h3
{[%clk 0:02:05.3]} 11... e6 {[%clk 0:02:50.4]} 12. Be2 {[%clk 0:01:57.8]} 12...
Be7 {[%clk 0:02:48.4]} 13. O-O {[%clk 0:01:55.9]} 13... O-O {[%clk 0:02:48.1]}
14. Ne5 {[%clk 0:01:52.8]} 14... Nxe5 {[%clk 0:02:45.9]} 15. Bxe5 {[%clk
0:01:53]} 15... Nd7 {[%clk 0:02:45.8]} 16. Bg3 {[%clk 0:01:52.7]} 16... c5
{[%clk 0:02:44.9]} 17. dxc5 {[%clk 0:01:52.4]} 17... Nxc5 {[%clk 0:02:44.2]} 18.
Nxc5 {[%clk 0:01:49.6]} 18... Rxc5 {[%clk 0:02:40.7]} 19. Rfc1 {[%clk
0:01:44.1]} 19... Rfc8 {[%clk 0:02:39.9]} 20. Be5 {[%clk 0:01:38.4]} 20... f6
{[%clk 0:02:27.4]} 21. Bd4 {[%clk 0:01:37.9]} 21... R5c6 {[%clk 0:02:26.7]} 22.
g4 {[%clk 0:01:28.6]} 22... Bg6 {[%clk 0:02:22.7]} 23. Bb6 {[%clk 0:01:08.1]}
23... Kf7 {[%clk 0:02:05.1]} 24. f4 {[%clk 0:01:06.9]} 24... Be4 {[%clk
0:02:04.4]} 25. Kf2 {[%clk 0:01:06.3]} 25... g5 {[%clk 0:02:04.3]} 26. Bf3
{[%clk 0:01:03.2]} 26... Bxf3 {[%clk 0:02:03]} 27. Kxf3 {[%clk 0:01:03]} 27...
e5 {[%clk 0:02:03.2]} 28. f5 {[%clk 0:01:00.7]} 28... Bc5 {[%clk 0:02:01.6]} 29.
Bxc5 {[%clk 0:00:58]} 29... Rxc5 {[%clk 0:02:02.5]} 30. Ra4 {[%clk 0:00:57.7]}
30... Rb5 {[%clk 0:01:59.5]} 31. Rc2 {[%clk 0:00:51.2]} 31... h5 {[%clk
0:01:59]} 32. gxh5 {[%clk 0:00:48.8]} 32... Rh8 {[%clk 0:01:58.4]} 33. Kg4
{[%clk 0:00:49]} 33... Ke7 {[%clk 0:01:42.5]} 34. Rb4 {[%clk 0:00:46.6]} 34...
Rc8 {[%clk 0:01:18]} 35. Ra4 {[%clk 0:00:31.4]} 35... Rbc5 {[%clk 0:01:14.2]}
36. b3 {[%clk 0:00:16.5]} 36... Rxc3 {[%clk 0:01:10.6]} 37. Rxc3 {[%clk
0:00:16.5]} 37... Rxc3 {[%clk 0:01:10.9]} 38. h6 {[%clk 0:00:17]} 38... Kf7
{[%clk 0:01:01.5]} 39. Rb4 {[%clk 0:00:16.8]} 39... Rc7 {[%clk 0:01:01.3]} 40.
h4 {[%clk 0:00:09.5]} 40... gxh4 {[%clk 0:01:00.3]} 41. Kxh4 {[%clk 0:00:10.4]}
41... Rd7 {[%clk 0:00:58.1]} 42. Kg3 {[%clk 0:00:10.5]} 42... Kg8 {[%clk
0:00:57.7]} 43. Rb6 {[%clk 0:00:09.9]} 43... d4 {[%clk 0:00:56.1]} 44. exd4
{[%clk 0:00:10.1]} 44... exd4 {[%clk 0:00:57]} 45. Kf2 {[%clk 0:00:10.1]} 45...
d3 {[%clk 0:00:57.4]} 46. Ke1 {[%clk 0:00:10.4]} 46... d2+ {[%clk 0:00:57.6]}
47. Kd1 {[%clk 0:00:10.7]} 47... Kf7 {[%clk 0:00:57.5]} 48. h7 {[%clk 0:00:10]}
48... Kg7 {[%clk 0:00:57]} 49. Rxf6 {[%clk 0:00:10.5]} 49... Kxh7 {[%clk
0:00:56.3]} 50. Re6 {[%clk 0:00:07.9]} 50... Kg7 {[%clk 0:00:56.2]} 51. Re2
{[%clk 0:00:08]} 51... Rd5 {[%clk 0:00:56.1]} 52. b4 {[%clk 0:00:06.8]} 52...
Kf6 {[%clk 0:00:54.5]} 53. Rxd2 {[%clk 0:00:06.4]} 53... Rb5 {[%clk 0:00:53.7]}
54. Rd4 {[%clk 0:00:03.9]} 54... Kxf5 {[%clk 0:00:53.9]} 55. Kc2 {[%clk
0:00:04]} 55... Ke5 {[%clk 0:00:54.1]} 56. Kc3 {[%clk 0:00:04.4]} 56... Ke6
{[%clk 0:00:49.8]} 57. Kc4 {[%clk 0:00:04.1]} 57... Re5 {[%clk 0:00:48.1]} 58.
Rd2 {[%clk 0:00:04.1]} 58... Rg5 {[%clk 0:00:45.3]} 59. Rd3 {[%clk 0:00:03.4]}
59... Re5 {[%clk 0:00:41.5]} 60. Rd8 {[%clk 0:00:03.2]} 60... Ke7 {[%clk
0:00:39.7]} 61. Rd1 {[%clk 0:00:02.9]} 61... Ke8 {[%clk 0:00:38.5]} 62. Rd2
{[%clk 0:00:03.3]} 62... Rb5 {[%clk 0:00:36.6]} 63. Kb3 {[%clk 0:00:02.6]} 63...
Re5 {[%clk 0:00:35.2]} 64. Kc3 {[%clk 0:00:02.9]} 64... Ke7 {[%clk 0:00:35.3]}
65. Kc4 {[%clk 0:00:03.2]} 65... Ke6 {[%clk 0:00:34.7]} 66. Rd8 {[%clk
0:00:03.3]} 66... Ke7 {[%clk 0:00:33.8]} 67. Rd5 {[%clk 0:00:03.5]} 67... Re6
{[%clk 0:00:30]} 68. Kc5 {[%clk 0:00:03.3]} 68... Rc6+ {[%clk 0:00:29.8]} 69.
Kd4 {[%clk 0:00:03.7]} 69... Ke6 {[%clk 0:00:29.6]} 70. Rh5 {[%clk 0:00:03.4]}
70... Kd7 {[%clk 0:00:28.9]} 71. Rh7+ {[%clk 0:00:03.3]} 71... Kc8 {[%clk
0:00:28.7]} 72. Rh8+ {[%clk 0:00:03.6]} 72... Kc7 {[%clk 0:00:28.9]} 73. Rh7+
{[%clk 0:00:04.5]} 73... Kb8 {[%clk 0:00:29.2]} 74. Kd5 {[%clk 0:00:04.9]} 74...
Rc1 {[%clk 0:00:27.5]} 75. Rh8+ {[%clk 0:00:05.2]} 75... Ka7 {[%clk 0:00:27.5]}
76. Rh7 {[%clk 0:00:05.6]} 76... Rd1+ {[%clk 0:00:27]} 77. Kc5 {[%clk 0:00:06]}
77... Rc1+ {[%clk 0:00:26.9]} 78. Kd5 {[%clk 0:00:06.3]} 78... Rd1+ {[%clk
0:00:26.5]} 79. Kc4 {[%clk 0:00:06.5]} 79... Rc1+ {[%clk 0:00:26.3]} 80. Kb3
{[%clk 0:00:06.9]} 80... Rb1+ {[%clk 0:00:26.1]} 81. Kc3 {[%clk 0:00:07.3]}
81... Rc1+ {[%clk 0:00:26]} 82. Kd3 {[%clk 0:00:07.7]} 82... Rd1+ {[%clk
0:00:25.8]} 83. Kc2 {[%clk 0:00:08]} 83... Rg1 {[%clk 0:00:22.9]} 84. Rh4 {[%clk
0:00:06.3]} 84... Kb8 {[%clk 0:00:21]} 85. Kc3 {[%clk 0:00:06.4]} 85... Kc7
{[%clk 0:00:20.8]} 86. Rh7+ {[%clk 0:00:06.2]} 86... Kc6 {[%clk 0:00:20.6]} 87.
Rh6+ {[%clk 0:00:06.6]} 87... Kd5 {[%clk 0:00:20.3]} 88. Rb6 {[%clk 0:00:06]}
88... Rg3+ {[%clk 0:00:19.1]} 89. Kb2 {[%clk 0:00:06.2]} 89... Rg7 {[%clk
0:00:19.3]} 90. Kb3 {[%clk 0:00:06.2]} 90... Rc7 {[%clk 0:00:18.5]} 91. Ka4
{[%clk 0:00:06]} 91... Kd4 {[%clk 0:00:18.1]} 92. Rh6 {[%clk 0:00:05.8]} 92...
Kc3 {[%clk 0:00:17.4]} 93. Rh3+ {[%clk 0:00:04.9]} 93... Kb2 {[%clk 0:00:17.2]}
94. Rh2+ {[%clk 0:00:03.8]} 94... Rc2 {[%clk 0:00:16.5]} 95. Rh7 {[%clk
0:00:03.3]} 95... Rc3 {[%clk 0:00:16]} 96. Rh2+ {[%clk 0:00:02.3]} 96... Rc2
{[%clk 0:00:14.7]} 97. Rh3 {[%clk 0:00:02.4]} 97... Ka1 {[%clk 0:00:13.1]} 98.
b5 {[%clk 0:00:01.9]} 98... Rc4+ {[%clk 0:00:11.9]} 99. Kb3 {[%clk 0:00:02.2]}
99... axb5 {[%clk 0:00:12.8]} 0-1